bitfinex-derivatives/quotes_ETHF0:USTF0_20250912
["timestamp","ask_amount","ask_price","bid_price","bid_amount"]
[1757703091814,0.2979,4619.3,4619.2,0.9184]
[1757703092007,0.2979,4619.8,4619.3,0.2937]
[1757703092212,0.4901,4619.8,4619.7,0.4047]
[1757703092405,0.6957,4619.8,4619.7,0.4047]
[1757703092711,0.3978,4619.8,4619.7,0.22]
[1757703093014,0.6957,4619.8,4619.7,0.22]
[1757703094107,0.6957,4619.8,4619.7,0.4205]
[1757703094303,0.6957,4619.8,4619.7,0.9184]
[1757703094505,0.2979,4619.8,4619.7,0.9184]
[1757703095910,0.4901,4619.8,4619.7,0.9184]
[1757703096111,0.4901,4619.8,4619.7,0.6247]
[1757703096813,0.5199,4619.5,4619.4,0.4047]
[1757703097109,0.5199,4619.5,4619.4,0.6247]
[1757703097110,0.8178,4619.5,4619.4,0.6247]
[1757703097510,0.1221,4620.0,4619.4,0.9184]
[1757703097810,0.6957,4619.9,4619.8,0.4047]
[1757703102019,0.6957,4619.9,4619.8,0.6984]
[1757703102713,0.6957,4619.9,4619.8,0.4047]
[1757703103916,0.5199,4619.5,4619.4,0.4205]
[1757703104111,0.8178,4619.5,4619.4,0.6247]
[1757703104415,0.8178,4619.0,4618.9,0.2005]
[1757703104614,0.8178,4619.0,4618.9,0.4205]
[1757703105517,0.8178,4619.0,4618.9,0.6247]
[1757703105718,0.2979,4619.0,4618.9,0.9184]
[1757703106512,0.4106,4619.5,4618.9,4.6247]
[1757703106722,0.8035,4619.5,4619.4,0.3905]
[1757703107109,0.8035,4619.5,4619.4,0.196]
[1757703108520,0.8035,4619.5,4619.4,0.6775]
[1757703108920,0.8035,4619.5,4619.4,0.3905]
[1757703110719,0.4871,4619.5,4619.4,0.6775]
[1757703111024,0.2885,4619.5,4619.4,0.6775]
[1757703111921,0.7976,4619.5,4619.4,0.3905]
[1757703112124,0.2885,4619.4,4618.9,0.22]
[1757703112327,0.6033,4619.0,4618.9,0.3905]
[1757703112627,0.6033,4619.0,4618.9,0.6105]
[1757703112829,0.6033,4619.0,4618.9,0.8975]
[1757703113323,0.7976,4619.0,4618.9,0.6105]
[1757703113928,0.7976,4619.0,4618.9,0.80547]
[1757703114331,0.7976,4619.0,4618.9,0.416]
[1757703114631,0.7976,4619.0,4618.9,0.6105]
[1757703115023,0.7976,4619.0,4618.9,0.99997]
[1757703115325,0.7976,4619.0,4618.9,0.6105]
[1757703115533,0.2885,4618.9,4618.8,2.69752539]
[1757703115728,0.2885,4618.8,4618.6,33.88152539]
[1757703115934,0.6814,4618.8,4618.7,0.22]
[1757703117233,0.6814,4618.8,4618.6,31.184]
[1757703117234,0.2953,4618.7,4618.6,31.184]
[1757703117438,0.2953,4618.7,4618.6,31.404]
[1757703118740,0.2953,4618.7,4618.6,31.6977]
[1757703118936,0.617,4619.0,4618.9,0.7089]
[1757703119137,0.617,4619.0,4618.9,0.9289]
[1757703119341,0.2953,4619.0,4618.9,0.9289]
[1757703119541,0.8193,4619.0,4618.9,0.206]
[1757703119737,0.8193,4619.0,4618.6,31.184]
[1757703119931,0.4069,4618.8,4618.7,0.426]
[1757703120131,0.7022,4618.8,4618.7,0.426]
[1757703121943,0.7022,4618.8,4618.7,0.9289]
[1757703121944,0.5008,4618.8,4618.7,0.9289]
[1757703122142,0.2953,4619.2,4618.7,0.22]
[1757703122339,0.2953,4619.2,4619.1,0.7089]
[1757703122546,0.2953,4619.2,4619.1,0.9289]
[1757703122741,0.5008,4619.2,4619.1,0.9289]
[1757703122942,0.7022,4619.2,4619.1,0.426]
[1757703124446,0.7022,4619.2,4619.1,0.6352]
[1757703125047,0.7022,4619.2,4619.1,0.9289]
[1757703126044,0.7022,4619.2,4619.1,0.6352]
[1757703126239,0.7022,4618.7,4618.6,31.184]
[1757703126542,0.7022,4618.7,4618.6,31.404]
[1757703132552,0.7022,4618.7,4618.6,31.6977]
[1757703133852,0.7022,4618.7,4618.6,31.404]
[1757703134450,0.0649,4619.2,4618.9,0.4152]
[1757703134648,0.0649,4619.2,4618.6,31.404]
[1757703134649,0.2704,4619.2,4619.1,0.7089]
[1757703135150,0.5008,4619.2,4619.1,0.7089]
[1757703135450,0.5008,4619.2,4619.1,0.4152]
[1757703135756,0.7022,4619.2,4619.0,0.22]
[1757703140054,0.7022,4619.2,4619.1,0.4152]
[1757703140357,0.2953,4619.4,4619.1,0.4152]
[1757703140558,0.3866,4619.5,4619.4,0.4152]
[1757703140853,0.5308,4620.5,4620.4,0.206]
[1757703141157,0.8261,4620.5,4620.4,0.22]
[1757703144859,0.8261,4620.5,4619.8,0.3073]
[1757703144860,4.8261,4620.5,4619.8,0.3073]
[1757703145161,0.8193,4620.0,4619.9,0.22]
[1757703145461,0.8193,4620.0,4619.9,0.426]
[1757703146456,0.8193,4620.0,4619.9,0.22]
[1757703146862,0.8193,4620.0,4619.0,0.1162]
[1757703147062,0.2972,4619.9,4619.1,0.2948]
[1757703147267,0.4993,4619.9,4619.8,0.2101]
[1757703147559,0.1967,4619.9,4619.8,0.9282]
[1757703148160,0.4939,4619.9,4619.8,0.7082]
[1757703148355,0.4939,4619.9,4619.8,0.9282]
[1757703149065,0.1967,4619.9,4619.8,0.9282]
[1757703149765,0.4939,4619.9,4619.8,0.9282]
[1757703150156,0.1967,4619.9,4619.8,0.9282]
[1757703150369,0.4939,4620.2,4620.1,0.7082]
[1757703150762,0.696,4620.2,4620.1,0.7082]
[1757703151659,0.1252,4620.0,4619.8,0.22]
[1757703151865,0.696,4619.9,4619.1,0.2948]
[1757703152060,0.696,4619.9,4619.2,0.22]
[1757703152368,0.2972,4620.4,4619.6,0.2948]
[1757703153062,0.4939,4620.4,4620.3,0.2033]
[1757703153368,0.4939,4620.4,4620.3,0.9282]
[1757703153369,0.696,4620.4,4620.3,0.9282]
[1757703155562,0.696,4620.4,4620.3,0.6334]
[1757703155769,0.696,4620.4,4620.3,0.22]
[1757703156157,0.696,4620.4,4620.3,0.4233]
[1757703157073,0.696,4620.4,4620.3,0.9282]
[1757703157477,0.696,4620.4,4620.3,0.6334]
[1757703157769,0.696,4620.4,4620.3,0.9282]
[1757703160372,0.696,4620.4,4620.2,0.22]
[1757703160668,0.696,4620.4,4620.3,0.7082]
[1757703161764,0.1967,4620.4,4620.3,0.7082]
[1757703162770,0.2972,4620.9,4620.4,0.2948]
[1757703162971,0.0649,4621.4,4620.9,0.2948]
[1757703163272,0.0649,4621.4,4621.1,0.2948]
[1757703163273,0.7609,4621.4,4621.1,0.2948]
[1757703163472,1.16050641,4623.3,4621.0,0.189]
[1757703163473,1.16050641,4623.7,4621.5,0.38926]
[1757703163775,0.58585841,4623.6,4623.5,0.4143]
[1757703163972,1.16050641,4625.3,4623.5,0.4143]
[1757703164172,0.58572224,4625.2,4623.6,0.2033]
[1757703164370,0.58572224,4625.1,4623.7,0.2948]
[1757703164567,0.58572224,4625.0,4623.7,0.2948]
[1757703164879,31.168,4626.6,4623.7,0.2948]
[1757703164880,0.21623,4625.8,4623.7,0.2948]
[1757703165168,0.08,4626.0,4623.7,0.2948]
[1757703165169,0.58455712,4625.7,4623.7,0.2948]
[1757703165367,0.21622,4625.9,4623.7,0.2948]
[1757703165567,0.58358921,4625.8,4623.7,0.2948]
[1757703165763,0.58358921,4625.7,4623.7,0.2948]
[1757703165969,0.21623,4625.7,4623.7,0.2948]
[1757703166173,0.08,4626.0,4623.7,0.2948]
[1757703166368,0.21622,4625.9,4623.7,0.38907]
[1757703166569,0.21622,4625.9,4623.8,0.3122]
[1757703166771,0.21623,4625.8,4623.8,0.3122]
[1757703166974,0.21622,4625.9,4623.8,0.3122]
[1757703167373,0.21622,4625.8,4623.8,0.70126]
[1757703167675,0.032,4625.8,4624.1,0.5127]
[1757703167874,0.21623,4625.7,4624.1,0.5127]
[1757703168072,0.21623,4625.7,4624.2,0.3122]
[1757703168273,0.032,4625.8,4624.2,0.3122]
[1757703168274,0.21622,4625.6,4624.2,0.2005]
[1757703168469,0.21622,4625.7,4624.3,0.5127]
[1757703168969,0.21622,4625.6,4624.3,0.5127]
[1757703169171,0.21621,4625.7,4624.3,0.5127]
[1757703169569,0.21622,4625.6,4624.3,0.2005]
[1757703169764,0.21621,4625.7,4624.0,0.4287]
[1757703169973,0.21621,4625.7,4623.5,0.4317]
[1757703170169,0.21623,4625.6,4623.6,0.3122]
[1757703170370,0.21623,4625.7,4623.6,0.5127]
[1757703170873,0.21623,4625.6,4623.6,0.5127]
[1757703171080,0.21623,4625.7,4623.6,0.5127]
[1757703171679,0.21623,4625.6,4623.6,0.5127]
[1757703171979,0.21623,4625.7,4623.2,0.3122]
[1757703172182,0.58119321,4625.6,4623.2,0.3122]
[1757703172379,0.58119321,4625.5,4623.2,0.3122]
[1757703172677,0.58110598,4625.4,4623.2,0.3122]
[1757703172880,0.79735598,4625.3,4623.2,0.3122]
[1757703173179,0.80110598,4625.2,4623.2,0.3122]
[1757703173372,0.58110598,4625.1,4623.2,0.3122]
[1757703173677,0.5810702,4625.0,4623.2,0.3122]
[1757703173874,0.21626,4625.0,4623.2,0.3122]
[1757703174077,0.21626,4624.9,4623.2,0.5127]
[1757703174276,0.22,4625.2,4623.2,0.5127]
[1757703174478,0.79730116,4625.1,4623.2,0.5127]
[1757703174776,0.58105116,4625.0,4623.2,0.5127]
[1757703174977,0.79731116,4625.0,4623.2,0.5127]
[1757703175169,0.58105116,4624.9,4623.2,0.5127]
[1757703175373,0.58105116,4624.8,4623.2,0.5127]
[1757703175568,0.21625,4625.1,4623.2,0.2005]
[1757703175772,0.58107943,4625.0,4623.3,0.5127]
[1757703175974,0.58107943,4624.9,4623.3,0.5127]
[1757703176173,0.58107943,4624.8,4623.3,0.5127]
[1757703176380,0.58107943,4624.7,4623.3,0.5127]
[1757703176672,0.21625,4625.1,4623.3,0.5127]
[1757703176877,0.58114437,4625.0,4623.3,0.5127]
[1757703177080,0.22,4625.2,4623.3,0.5127]
[1757703177081,0.58114437,4624.9,4623.3,0.5127]
[1757703177282,0.58114437,4624.8,4623.3,0.5127]
[1757703177481,0.58114437,4624.7,4623.3,0.5127]
[1757703177779,0.58114437,4624.6,4623.3,0.3122]
[1757703178082,0.58123297,4624.5,4623.0,0.4077]
[1757703178277,31.153,4624.8,4623.0,0.4077]
[1757703178480,0.58133756,4624.7,4623.0,0.5995]
[1757703178775,0.58133756,4624.6,4623.0,0.5995]
[1757703178981,0.58133756,4624.5,4623.0,0.5995]
[1757703179180,0.80133756,4624.4,4623.0,0.3113]
[1757703179474,0.58145973,4624.3,4623.2,0.2882]
[1757703179676,0.58146982,4624.2,4623.2,0.2882]
[1757703179891,0.22,4624.4,4623.2,0.2882]
[1757703180077,0.58148407,4624.3,4623.0,0.1195]
[1757703180281,0.58148407,4624.2,4623.0,0.1195]
[1757703180480,0.22,4624.4,4623.0,0.1195]
[1757703180481,0.58148407,4624.1,4623.0,0.1195]
[1757703180681,0.5815014,4624.0,4623.1,0.2882]
[1757703180884,0.22,4624.4,4623.1,0.2882]
[1757703181076,0.58150396,4624.3,4623.1,0.48]
[1757703181277,0.58150396,4624.2,4623.1,0.48]
[1757703181578,0.58150396,4624.1,4623.1,0.48]
[1757703181774,0.58150396,4624.0,4623.1,0.48]
[1757703181981,0.58150396,4623.9,4623.2,0.2882]
[1757703182183,0.22,4624.4,4623.2,0.48]
[1757703182382,0.58110171,4624.3,4623.2,0.2882]
[1757703182683,0.58110171,4624.2,4623.2,0.2882]
[1757703182884,0.58110171,4624.1,4623.2,0.2882]
[1757703183080,0.58110171,4624.0,4623.2,0.2882]
[1757703183283,0.58110171,4623.9,4623.2,0.2882]
[1757703183484,0.58110171,4623.8,4623.2,0.2882]
[1757703183686,0.58127344,4623.7,4623.2,0.2882]
[1757703183885,0.22,4623.6,4623.0,0.3113]
[1757703184080,0.22,4623.6,4623.1,0.2882]
[1757703184687,0.22,4623.6,4623.5,0.1169]
[1757703185286,0.22,4623.6,4623.5,0.4051]
[1757703186089,0.22,4623.6,4621.2,0.38929]
[1757703186090,0.3018,4623.0,4621.6,0.2882]
[1757703186290,0.4183,4623.0,4621.6,0.2882]
[1757703186491,0.3018,4622.8,4621.6,0.2882]
[1757703186696,1.0346437,4622.7,4622.6,0.48]
[1757703186889,1.2056437,4622.7,4622.6,0.48]
[1757703187288,1.5074437,4622.7,4622.6,0.48]
[1757703187504,1.5074437,4622.7,4622.1,0.2882]
[1757703187804,0.7056,4622.2,4622.1,0.2882]
[1757703188100,0.7056,4622.2,4622.1,0.48]
[1757703188704,0.7056,4622.2,4621.6,0.2882]
[1757703190205,0.7056,4622.2,4622.1,0.48]
[1757703190498,0.4038,4623.3,4623.2,0.6853]
[1757703190703,0.0648,4623.4,4623.2,0.6853]
[1757703190704,0.0648,4623.4,4623.3,0.2882]
[1757703191005,0.0648,4623.4,4623.3,0.6853]
[1757703191198,0.3018,4624.1,4623.4,0.2882]
[1757703191507,0.2054,4623.6,4623.5,0.514]
[1757703192002,0.2054,4623.6,4623.5,0.8022]
[1757703193105,0.4038,4623.6,4623.5,0.8022]
[1757703194608,0.2054,4623.6,4623.5,0.8022]
[1757703194993,0.4038,4623.6,4623.5,0.8022]
[1757703196705,0.4204,4623.5,4621.5,0.1949]
[1757703196908,0.3025,4623.3,4621.5,0.1949]
[1757703197209,0.1179,4623.5,4621.5,0.1949]
[1757703197210,0.1179,4623.0,4621.5,0.1949]
[1757703197505,0.7063,4622.9,4622.0,0.0643]
[1757703198602,0.7063,4622.9,4622.1,0.2882]
[1757703199403,0.3025,4622.4,4621.6,0.2882]
[1757703199610,0.3025,4621.9,4621.6,0.6853]
[1757703199809,0.1179,4622.5,4621.5,0.1169]
[1757703200010,0.7063,4622.4,4621.6,0.2882]
[1757703200309,0.3025,4621.9,4621.1,0.2882]
[1757703200804,0.7063,4621.9,4621.8,0.1918]
[1757703201208,0.22,4622.4,4621.9,0.3971]
[1757703201407,0.2054,4622.1,4622.0,0.6853]
[1757703201611,0.3379,4622.5,4622.0,0.3971]
[1757703201801,0.2054,4622.2,4622.1,0.4935]
[1757703202002,0.5079,4622.2,4622.1,0.6853]
[1757703202306,0.1179,4622.0,4621.6,0.2882]
[1757703202509,0.3025,4621.9,4621.1,0.2882]
[1757703202707,0.3025,4621.9,4621.8,0.6853]
[1757703203298,0.3025,4622.2,4621.8,0.3971]
[1757703203503,0.3025,4622.2,4621.0,0.0643]
[1757703203504,0.4038,4622.1,4622.0,0.3971]
[1757703203998,0.7063,4622.1,4622.0,0.3971]
[1757703206006,0.5079,4622.1,4622.0,0.6853]
[1757703206205,0.5225,4622.4,4622.1,0.2882]
[1757703206503,0.7063,4622.2,4622.1,0.3971]
[1757703206703,1.2906541,4622.2,4622.1,0.3971]
[1757703206901,0.2864,4622.9,4622.2,0.2879]
[1757703207106,1.48763884,4622.8,4622.7,0.4124]
[1757703207905,1.48763884,4622.8,4621.5,0.1169]
[1757703207906,1.48763884,4622.8,4621.6,0.2879]
[1757703208216,0.6833,4622.6,4622.5,0.4124]
[1757703208404,1.09073884,4622.6,4622.5,0.7003]
[1757703208600,0.7049,4622.6,4622.5,0.7003]
[1757703209113,0.7049,4622.6,4622.5,0.4124]
[1757703209114,0.9033,4622.6,4622.5,0.4124]
[1757703211009,0.9033,4622.6,4622.1,0.2879]
[1757703211211,0.6833,4622.4,4622.3,0.2039]
[1757703211914,0.9033,4622.4,4622.3,0.4124]
[1757703214414,0.9033,4622.4,4622.3,0.7003]
[1757703215317,0.6833,4622.4,4622.3,0.7003]
[1757703215517,0.5064,4622.4,4622.3,0.7003]
[1757703215717,0.9033,4622.4,4622.3,0.4124]
[1757703216321,0.6833,4622.4,4622.3,0.4124]
[1757703216621,0.9033,4622.4,4622.3,0.4124]
[1757703216821,0.9033,4622.4,4622.3,0.2039]
[1757703217321,0.3193,4622.0,4621.9,0.7003]
[1757703217618,0.6057,4622.0,4621.9,0.7003]
[1757703218115,0.8041,4622.0,4621.9,0.7003]
[1757703219416,0.8041,4622.0,4621.9,0.4124]
[1757703221223,0.8041,4622.0,4621.9,0.2039]
[1757703221428,0.8041,4622.0,4621.1,0.2879]
[1757703223020,0.8041,4622.0,4621.9,0.2039]
[1757703223220,0.8041,4622.0,4621.9,0.4124]
[1757703223525,0.8041,4622.0,4621.9,0.2039]
[1757703224618,0.8041,4622.0,4621.9,0.4124]
[1757703224816,0.8041,4622.0,4621.9,0.2039]
[1757703225315,0.8041,4622.0,4621.9,0.7003]
[1757703232330,0.8041,4622.0,4621.9,0.2039]
[1757703232531,1.39395797,4622.0,4621.0,0.1643]
[1757703232729,0.4963,4621.2,4621.1,0.6909]
[1757703233724,0.1166,4621.5,4621.1,0.6909]
[1757703233927,0.3191,4621.5,4621.4,0.4063]
[1757703234130,0.5123,4621.5,4621.4,0.4063]
[1757703234326,0.5123,4621.5,4621.4,0.6909]
[1757703234633,0.8061,4621.5,4621.4,0.6909]
[1757703234933,0.8061,4621.5,4621.4,0.4063]
[1757703236830,0.1208,4622.0,4621.4,0.719]
[1757703237036,0.1208,4622.0,4621.0,0.1]
[1757703237037,0.2703,4622.4,4622.3,0.715]
[1757703237338,0.3981,4622.4,4622.3,0.715]
[1757703237526,0.7045,4622.4,4621.9,0.3127]
[1757703237727,0.4238,4622.0,4621.9,0.715]
[1757703237938,0.1208,4622.5,4622.0,0.3127]
[1757703238231,0.6326,4622.5,4622.4,0.715]
[1757703238432,1.22287587,4622.5,4622.4,0.715]
[1757703239029,0.3379,4623.0,4622.4,0.715]
[1757703239030,0.1179,4623.0,4622.5,0.3127]
[1757703239334,1.10203727,4622.9,4622.8,0.715]
[1757703239536,1.29473727,4622.9,4622.8,0.715]
[1757703239726,1.29473727,4622.9,4622.8,0.4023]
[1757703240432,1.29473727,4622.9,4622.8,0.2098]
[1757703240835,1.29473727,4622.9,4622.8,0.715]
[1757703241332,0.3064,4622.9,4622.8,0.715]
[1757703241636,0.2702,4623.2,4623.1,0.4023]
[1757703241831,0.7693,4623.2,4623.1,0.715]
[1757703242039,1.35919619,4623.2,4623.1,0.715]
[1757703242233,0.7693,4623.2,4623.1,0.715]
[1757703242627,0.0648,4623.2,4623.1,0.715]
[1757703242836,0.5766,4623.2,4623.1,0.715]
[1757703243832,0.7693,4623.2,4623.1,0.715]
[1757703244033,0.7045,4623.2,4623.1,0.4023]
[1757703244642,0.7045,4623.2,4623.1,0.715]
[1757703246443,0.7045,4623.2,4623.1,0.4023]
[1757703246642,0.7045,4623.2,4623.1,0.2098]
[1757703247136,0.7045,4623.2,4622.0,0.0639]
[1757703247443,0.7045,4623.2,4622.2,0.3127]
[1757703247742,0.7045,4623.2,4623.1,0.2098]
[1757703247944,0.3981,4622.8,4622.7,0.715]
[1757703248140,0.7693,4623.1,4623.0,1.007]
[1757703249746,0.7693,4623.1,4623.0,1.13]
[1757703250245,0.2702,4623.1,4623.0,0.838]
[1757703250446,0.0648,4623.1,4623.0,0.838]
[1757703252346,0.2702,4623.1,4623.0,0.838]
[1757703252549,0.4629,4623.1,4623.0,0.838]
[1757703252747,0.7693,4623.1,4623.0,0.838]
[1757703255047,0.7045,4623.1,4623.0,0.838]
[1757703259848,0.3981,4623.1,4623.0,0.838]
[1757703261348,0.7045,4623.1,4623.0,0.838]
[1757703263743,0.3981,4623.1,4623.0,0.838]
[1757703263940,0.1174,4624.5,4623.0,0.838]
[1757703264146,0.59005898,4623.9,4623.8,0.715]
[1757703265043,0.79545898,4623.9,4623.8,0.715]
[1757703265249,1.29455898,4623.9,4623.8,0.5225]
[1757703265554,0.7045,4623.9,4623.8,0.5225]
[1757703266350,0.7045,4623.9,4623.8,0.715]
[1757703266555,0.3981,4623.9,4623.8,0.715]
[1757703268148,0.7131,4623.9,4623.8,0.715]
[1757703269753,0.219,4624.2,4623.8,0.715]
[1757703269957,0.6163,4624.2,4624.1,0.7047]
[1757703270256,1.52201399,4624.2,4624.1,0.7047]
[1757703270660,1.52201399,4624.2,4624.1,0.4966]
[1757703270958,1.30301399,4624.2,4624.1,0.4966]
[1757703274362,1.30301399,4624.2,4624.0,0.4845]
[1757703274667,1.30301399,4624.1,4624.0,1.3089]
[1757703274868,0.98801399,4624.1,4624.0,0.8244]
[1757703275665,1.30301399,4624.1,4624.0,0.8244]
[1757703275869,1.30301399,4624.1,4624.0,0.4966]
[1757703278364,1.30301399,4624.1,4623.9,0.4845]
[1757703278564,1.41671399,4624.0,4623.9,0.4845]
[1757703279165,1.41671399,4624.0,4623.6,0.3003]
[1757703279366,1.30301399,4623.9,4623.8,0.4845]
[1757703279668,1.30301399,4623.9,4623.8,0.9811]
[1757703280768,0.98801399,4623.9,4623.8,1.1892]
[1757703280973,0.59071399,4623.9,4623.8,1.1892]
[1757703281177,0.1908,4624.1,4624.0,0.8244]
[1757703281379,0.3973,4624.1,4624.0,0.8244]
[1757703281579,0.5912045,4624.1,4624.0,0.8244]
[1757703281971,0.59117646,4624.1,4624.0,0.8244]
[1757703282181,0.1908,4624.2,4624.1,0.3003]
[1757703282382,0.1908,4624.2,4624.1,0.7047]
[1757703282679,0.781973,4624.2,4624.1,0.7047]
[1757703284180,0.988473,4624.2,4624.1,0.7047]
[1757703284676,1.303473,4624.2,4624.1,0.7047]
[1757703286183,1.303473,4624.2,4624.1,0.4966]
[1757703290083,1.303473,4624.2,4624.1,0.6984]
[1757703290382,0.988473,4624.2,4624.1,0.6984]
[1757703290979,1.274373,4624.2,4624.1,0.6984]
[1757703293086,1.274373,4624.2,4624.0,0.4845]
[1757703293282,1.263473,4624.1,4624.0,0.7803]
[1757703293482,1.263473,4624.1,4624.0,0.975]
[1757703293785,1.263473,4624.1,4624.0,0.4905]
[1757703300690,1.263473,4624.1,4623.9,0.4845]
[1757703300691,0.8309,4624.0,4623.9,0.4845]
[1757703300886,1.827253,4624.0,4623.9,0.4845]
[1757703301089,1.610993,4624.0,4623.9,0.4845]
[1757703301892,1.829993,4624.0,4623.9,0.4845]
[1757703302093,1.829993,4624.0,4623.8,0.4845]
[1757703302289,1.49695417,4623.9,4623.8,0.7781]
[1757703302593,1.49695417,4623.9,4623.8,0.9754]
[1757703302788,1.18355417,4623.9,4623.8,1.1788]
[1757703304190,1.18355417,4623.9,4623.8,0.6943]
[1757703305096,0.78005417,4623.9,4623.8,0.6943]
[1757703305697,0.97655417,4623.9,4623.8,0.6943]
[1757703305994,1.49695417,4623.9,4623.8,0.6943]
[1757703306396,1.18355417,4623.9,4623.8,0.6943]
[1757703307494,1.49695417,4623.9,4623.8,0.6943]
[1757703308095,1.18355417,4623.9,4623.8,0.6943]
[1757703308591,1.49695417,4623.9,4623.8,0.6943]
[1757703308798,1.49695417,4623.9,4623.8,0.4909]
[1757703309896,1.49695417,4623.9,4623.8,0.6943]
[1757703310098,1.18355417,4623.9,4623.8,0.6943]
[1757703310798,1.49695417,4623.9,4623.8,0.6943]
[1757703311297,1.18355417,4623.9,4623.8,0.6943]
[1757703311699,1.49695417,4623.9,4623.8,0.6943]
[1757703315503,0.7169,4623.8,4623.7,0.4845]
[1757703315805,1.49695417,4623.8,4623.7,0.4845]
[1757703316194,1.308073,4623.8,4623.7,0.4845]
[1757703316396,1.308073,4623.8,4623.7,0.7781]
[1757703316596,1.308073,4623.8,4623.7,0.2936]
[1757703317003,1.308073,4623.8,4623.6,0.4845]
[1757703317203,1.49112407,4623.7,4623.6,0.4845]
[1757703317601,1.49112407,4623.7,4623.6,0.9801]
[1757703317796,1.49112407,4623.7,4623.6,0.7783]
[1757703318004,1.31339042,4623.7,4623.6,0.4845]
[1757703318802,1.31339042,4623.7,4623.5,0.4845]
[1757703319003,1.30349042,4623.6,4623.5,0.9801]
[1757703321004,1.17404088,4623.6,4623.5,0.8149]
[1757703321204,1.48654088,4623.6,4623.5,0.8149]
[1757703324306,1.48654088,4623.6,4623.4,0.4845]
[1757703324503,0.3945,4623.0,4622.9,0.6991]
[1757703324695,0.707,4624.2,4624.1,0.2018]
[1757703325000,1.66975649,4624.2,4624.1,0.2018]
[1757703325406,1.66975649,4624.2,4623.0,0.1158]
[1757703325609,0.5167,4624.0,4623.9,0.2018]
[1757703325802,1.42596457,4624.0,4623.9,0.2018]
[1757703326407,1.42596457,4624.0,4623.0,0.1158]
[1757703326608,0.3125,4623.8,4623.1,0.21629]
[1757703326803,1.30376457,4623.7,4623.6,0.2018]
[1757703327104,1.30376457,4623.7,4623.6,0.4114]
[1757703329499,1.30376457,4623.7,4623.6,0.2018]
[1757703331007,1.30376457,4623.7,4623.6,0.4114]
[1757703331417,0.3117,4623.4,4622.6,0.2873]
[1757703331712,0.6993,4623.4,4623.3,0.2096]
[1757703331912,0.6993,4623.4,4623.3,0.6926]
[1757703335308,0.1222,4624.0,4623.3,0.6926]
[1757703335611,0.98625715,4623.9,4623.8,0.4053]
[1757703335808,0.98625715,4623.9,4623.8,0.6926]
[1757703336009,0.98625715,4623.9,4623.8,0.4053]
[1757703336211,1.29795715,4623.9,4623.8,0.4053]
[1757703337307,1.29795715,4623.9,4623.8,0.6926]
[1757703337507,0.59865715,4623.9,4623.8,0.6926]
[1757703337710,0.3117,4624.2,4623.9,0.2873]
[1757703338005,0.3117,4624.2,4624.1,0.6926]
[1757703338408,0.5066,4624.2,4624.1,0.6926]
[1757703340915,0.6993,4624.2,4624.1,0.6926]
[1757703341711,0.6993,4624.2,4624.1,0.4053]
[1757703343815,0.6993,4624.2,4624.1,0.6926]
[1757703345416,0.3117,4624.4,4624.1,0.4053]
[1757703345610,0.4257,4624.5,4623.6,0.2873]
[1757703345810,0.1949,4625.0,4624.9,0.4053]
[1757703346013,0.5066,4625.0,4624.9,0.6926]
[1757703347320,0.1949,4625.1,4625.0,0.2873]
[1757703347522,0.6993,4625.1,4625.0,0.6926]
[1757703347722,1.29659763,4625.1,4625.0,0.6926]
[1757703348216,1.29659763,4625.1,4625.0,0.4053]
[1757703350425,0.6993,4625.1,4625.0,0.4053]
[1757703351924,0.6993,4625.1,4625.0,0.7185]
[1757703352122,0.2984,4625.4,4625.3,0.198]
[1757703352430,0.4955,4625.4,4625.3,0.7146]
[1757703355124,0.114,4626.0,4625.3,0.7146]
[1757703355322,1.28278731,4625.9,4625.8,0.7146]
[1757703355522,1.28278731,4625.9,4625.8,0.4014]
[1757703356224,0.6862,4625.9,4625.8,0.4014]
[1757703356531,0.6862,4625.9,4625.0,0.115]
[1757703356826,0.2984,4625.8,4625.1,0.3132]
[1757703357031,0.6997,4625.8,4625.7,0.198]
[1757703357327,0.6997,4625.8,4625.7,0.7174]
[1757703357529,0.6997,4625.8,4625.7,0.4079]
[1757703358826,0.6997,4625.8,4625.7,0.7174]
[1757703359025,0.6997,4625.8,4625.7,0.4079]
[1757703361731,0.6997,4625.8,4624.6,0.3095]
[1757703361934,0.3041,4625.7,4624.7,0.3095]
[1757703362123,0.3041,4625.7,4624.7,0.5257]
[1757703362329,0.3041,4625.9,4624.7,0.3095]
[1757703362528,0.3041,4625.9,4624.8,0.2162]
[1757703362728,0.3041,4625.9,4624.6,0.52571]
[1757703362925,0.3041,4625.9,4624.7,0.3095]
[1757703363128,0.3041,4625.9,4624.8,0.3095]
[1757703363329,0.3041,4625.9,4624.8,0.5257]
[1757703363536,0.3041,4625.9,4624.6,0.3095]
[1757703363831,0.3041,4625.9,4624.7,0.3095]
[1757703364034,0.3041,4625.9,4624.8,0.3095]
[1757703364236,0.3041,4625.9,4624.8,0.5257]
[1757703364533,0.3041,4625.9,4624.9,0.2162]
[1757703364835,0.3041,4625.9,4625.0,0.1152]
[1757703365037,0.3041,4625.9,4625.1,0.3095]
[1757703365436,0.709,4625.9,4625.8,0.2089]
[1757703365631,0.709,4625.9,4625.3,0.3095]
[1757703367131,0.1212,4625.5,4625.3,0.3095]
[1757703367337,0.2007,4625.1,4625.0,0.7283]
[1757703367730,0.3041,4625.4,4625.1,0.3095]
[1757703368035,0.5048,4625.4,4625.3,0.7283]